Cogmind - Beta 13 @@@ ROGUE MODE // 2024.04.14 @ 18:01:39 Player: Vriska Result: Destroyed by D-53 Grenadier with Mini Grenade Launcher Performance ------------- Evolutions (0) 0 Regions Visited (2) 400 Robots Destroyed (19) 95 Value Destroyed (490) 490 Prototype IDs (0) 0 Alien Tech Used (0) 0 Bonus (0) 0 TOTAL SCORE: 985 Bonus ------- None Cogmind --------- Core Integrity 0/250 Matter 292/300 Energy 125/125 System Corruption 0% Temperature Cool (0) Movement Treading (240) Ox1 Location -10/Mines Parts ------- > --- POWER (1) -------- Light Ion Engine > --- PROPULSION (2) --- Improved Treads > --- UTILITY (2) ------ Large Storage Unit Targeting Computer > --- WEAPON (2) ------- Autogun Autogun > --- INVENTORY (15) --- Improved Treads Improved Treads Medium Storage Unit Signal Interpreter Hacking Suite Autogun Autogun Rocket Launcher Peak State ------------ > --- POWER ------------ Light Ion Engine > --- PROPULSION ------- Improved Treads Improved Treads > --- UTILITY ---------- Small Storage Unit Targeting Computer > --- WEAPON ----------- Autogun Autogun > --- INVENTORY -------- Improved Treads Hacking Suite Autogun Autogun Mining Laser [Rating: 12] Favorites ----------- Power Light Ion Engine Engine Light Ion Engine Propulsion Aluminum Leg Treads Improved Treads Leg Aluminum Leg Utility Targeting Computer Storage Small Storage Unit Processor Targeting Computer Weapon Autogun Energy Gun Small Laser Ballistic Gun Autogun Ballistic Cannon Light Cannon Build | -11 -10 -10 ------- Run | Yrd Mat Min Slots Evolved . | . . . Power . | . . . Propulsion . | . . . Utility . | . . . Weapon . | . . . Parts Attached 22 | 6 14 2 Power 4 | 1 1 2 Engine 4 | 1 1 2 Core . | . . . Reactor . | . . . Propulsion 8 | 2 6 . Treads 2 | . 2 . Leg 6 | 2 4 . Wheel . | . . . Hover . | . . . Flight . | . . . Utility 3 | 1 2 . Device . | . . . Storage 2 | 1 1 . Processor 1 | . 1 . Hackware . | . . . Protection . | . . . Artifact . | . . . Weapon 7 | 2 5 . Energy Gun 1 | . 1 . Energy Cannon . | . . . Ballistic Gun 5 | 2 3 . Ballistic Cannon 1 | . 1 . Launcher . | . . . Special Weapon . | . . . Impact Weapon . | . . . Slashing Weapon . | . . . Piercing Weapon . | . . . Special Melee Weapon . | . . . Unidentified Prototypes . | . . . Parts Lost 6 | . 4 2 Power 2 | . 1 1 Propulsion 2 | . 1 1 Utility . | . . . Weapon 2 | . 2 . Highest Loss Streak 2 | . 2 2 To Critical Strikes . | . . . Average Slot Usage (%) 99 | . 99 99 Engine 13 | . 14 13 Treads 14 | . 9 27 Leg 13 | . 17 . Storage 14 | . 14 14 Processor 13 | . 13 14 Energy Gun 2 | . 3 . Ballistic Gun 24 | . 23 28 Naked Turns . | . . . Heaviest Build 29 | 12 29 29 Greatest Support 46 | 20 46 46 Greatest Overweight (x) 1 | . 1 1 Average Overweight (x) . | . . . Largest Inventory Capacity 15 | 8 15 15 Average Capacity 10 | 7 9 15 Most Carried 9 | 2 8 9 Average Carried 4 | 1 3 8 Final Capacity 15 | 8 15 15 Final Carried 8 | 2 7 8 Class Distribution -------------------- 100% | Mutant Dominant Class ---------------- Mutant | -10/Materials Mutant | -10/Mines Resources | -11 -10 -10 ----------- Run | Yrd Mat Min Matter Collected 738 | 232 425 81 Remotely . | . . . Salvage Created 544 | . 502 42 Parts 43 | . 39 4 Haulers Intercepted . | . . . Recyclers Shooed . | . . . Parts Field Recycled . | . . . Retrieved Matter . | . . . Parts Self-Destructed . | . . . Prevented . | . . . Kills | -11 -10 -10 ------- Run | Yrd Mat Min Combat Hostiles Destroyed 13 | . 10 3 Guns 13 | . 10 3 Classes Destroyed 5 | . 4 1 Worker 1 | . 1 . Operator 2 | . 2 . Watcher 3 | . 3 . Swarmer 3 | . . 3 Grunt 10 | . 10 . Best Kill Streak 3 | . 3 3 Combat Bots Only 3 | . 2 3 Max Kills in Single Turn 2 | . 2 2 Gunslinging 1 | . . 1 Exploded . | . . . Melee . | . . . Uniques/NPCs Destroyed . | . . . Combat | -11 -10 -10 -------- Run | Yrd Mat Min Hostile Shots Fired 116 | . 88 28 Missed 34 | . 32 2 Damage Taken 1222 | . 692 530 Core 255 | . 124 131 Absorbed by Shields . | . . . Core Remaining (%) 100 | 100 . . Volleys Fired 73 | . 68 5 Largest 2 | . 2 2 Hottest 60 | . 60 46 Shots Fired 143 | . 133 10 Gun 140 | . 130 10 Cannon 3 | . 3 . Launcher . | . . . Special . | . . . Kinetic 129 | . 119 10 Thermal 14 | . 14 . Explosive . | . . . Electromagnetic . | . . . Robot Hit Streak 9 | . 9 2 Robot Miss Streak 6 | . 6 2 Penetration Max . | . . . Secondary Targets 5 | . 4 1 Max Gunslinging Chain 1 | . 1 1 Shots Hit Robots 83 | . 78 5 Core Hits 32 | . 29 3 Critical Kills 1 | . 1 . Critical Parts Destroyed 2 | . 2 . Critical Strikes 3 | . 3 . Destroy 3 | . 3 . Melee Attacks . | . . . Impact . | . . . Slashing . | . . . Piercing . | . . . Sneak Attacks . | . . . Combat Hostiles . | . . . Follow-up Attacks . | . . . Damage Inflicted 990 | . 919 71 Guns 952 | . 881 71 Cannons 35 | . 35 . Explosions . | . . . Melee . | . . . Ramming 3 | . 3 . Kinetic 899 | . 828 71 Thermal 88 | . 88 . Explosive . | . . . Electromagnetic . | . . . Impact . | . . . Slashing . | . . . Piercing . | . . . Highest Corruption . | . . . Average Corruption . | . . . Corruption Purged . | . . . Corruption Blocked . | . . . Overload Shots . | . . . Overflow Damage . | . . . Projectiles . | . . . Explosions . | . . . Melee . | . . . Knockbacks 1 | . 1 . Impact . | . . . Kinetic 1 | . 1 . Secondary . | . . . Self-Inflicted Damage . | . . . Shots . | . . . Rammed . | . . . Targets Rammed 1 | . 1 . Kicked 1 | . 1 . Crushed . | . . . Highest Temperature 102 | . 102 6 Average Temperature 19 | . 21 4 Received Heat Transfer 420 | . 420 . Siege Activations . | . . . Robots Corrupted . | . . . Combat Hostiles . | . . . Parts Fried . | . . . Impact Corruptions . | . . . Robots Melted . | . . . Combat Hostiles . | . . . Parts Melted . | . . . Heat Transferred 200 | . 200 . Parts Sabotaged . | . . . Parts Stolen . | . . . Parts Stripped . | . . . Power Chain Reactions . | . . . Alert | -11 -10 -10 ------- Run | Yrd Mat Min Peak Influence 175 | . 175 72 Initial 2 | . . 2 Average 43 | . 51 27 Maximum Alert Level . | . . . Low Security (%) 100 | 100 100 100 Level 1 . | . . . Level 2 . | . . . Level 3 . | . . . Level 4 . | . . . Level 5 . | . . . High Security . | . . . Max Security . | . . . Squads Dispatched 3 | . 3 . Investigation 1 | . 1 . Extermination . | . . . Reinforcement 2 | . 2 . Assault . | . . . Garrison . | . . . Intercept . | . . . Searches Triggered . | . . . Construction Impeded . | . . . Haulers Reinforced . | . . . Active Scanning Responses . | . . . Cargo Convoy Interrupts . | . . . Stealth | -11 -10 -10 --------- Run | Yrd Mat Min Distress Signals . | . . . Communications Jammed . | . . . Distress Signals . | . . . Times Spotted 35 | . 20 15 Peak Tracking Total 9 | . 4 9 Tactical Retreats 1 | . 1 . Traps | -11 -10 -10 ------- Run | Yrd Mat Min Traps Triggered 1 | . 1 . Indirectly . | . . . Trap Hack Attempts . | . . . Triggered . | . . . Disarmed . | . . . Reprogrammed . | . . . Reused . | . . . Traps Extracted . | . . . Installed . | . . . Triggered . | . . . Machines | -11 -10 -10 ---------- Run | Yrd Mat Min Machines Disabled . | . . . Max in Single Turn . | . . . Machines Repaired . | . . . Machines Dismantled . | . . . Machines Sabotaged . | . . . Overloaded Fab Kills . | . . . Hacking | -11 -10 -10 --------- Run | Yrd Mat Min Machines Accessed . | . . . Terminals . | . . . Fabricators . | . . . Repair Stations . | . . . Recycling Units . | . . . Scanalyzers . | . . . Garrison Access . | . . . Total Hacks . | . . . Successful . | . . . Failed . | . . . Catastrophic . | . . . Database Lockouts . | . . . Manual . | . . . Terminals . | . . . Fabricators . | . . . Repair Stations . | . . . Recycling Units . | . . . Scanalyzers . | . . . Garrison Access . | . . . Terminal Hacks . | . . . Fabricator Hacks . | . . . Repair Station Hacks . | . . . Recycling Unit Hacks . | . . . Scanalyzer . | . . . Garrison Access Hacks . | . . . Unauthorized Hacks . | . . . Terminals . | . . . Fabricators . | . . . Repair Stations . | . . . Recycling Units . | . . . Scanalyzers . | . . . Garrison Access . | . . . Data Cores Recovered . | . . . Used . | . . . Hacking Detections . | . . . Full Trace Events . | . . . Feedback Events . | . . . Feedback Blocked . | . . . Robot Schematics Acquired . | . . . Robots Built . | . . . Authchips . | . . . Time . | . . . Total Robot Build Rating . | . . . Part Schematics Acquired . | . . . Parts Built . | . . . Authchips . | . . . Time . | . . . Total Part Build Rating . | . . . Parts Repaired . | . . . Time . | . . . Parts Recycled . | . . . Recycled Matter . | . . . Retrieved Matter . | . . . Retrieved Components . | . . . Parts Scanalyzed . | . . . Part Schematics Acquired . | . . . Parts Damaged . | . . . Bothacking | -11 -10 -10 ------------ Run | Yrd Mat Min Used RIF Installer . | . . . Robots Hacked . | . . . Non-combat . | . . . Combat . | . . . Robot Hacks Applied . | . . . Relay Couplers Released . | . . . Fabnet Peak Effective % . | . . . Robots Rewired . | . . . Allies Hacked . | . . . Hacks Repelled . | . . . Allies | -11 -10 -10 -------- Run | Yrd Mat Min Total Allies . | . . . Largest Group . | . . . Highest-Rated Group . | . . . Highest-Rated Ally . | . . . Total Orders . | . . . Ally Attacks . | . . . Total Damage . | . . . Kills . | . . . Allies Corrupted . | . . . Allies Melted . | . . . Intel | -11 -10 -10 ------- Run | Yrd Mat Min Robot Analysis Total . | . . . Derelict Logs Recovered 1 | . . 1 Drone Launches . | . . . Drone Recoveries . | . . . Exploration | -11 -10 -10 ------------- Run | Yrd Mat Min Turns Passed 2130 | 77 1558 495 Spaces Moved 1355 | 65 992 298 Core 16 | 16 . . Treads 635 | . 337 298 Legs 704 | 49 655 . Wheels . | . . . Hover . | . . . Flight . | . . . Fastest Speed 50 | 50 120 160 Average Speed 138 | 102 134 160 Slowest Speed 240 | 120 190 240 Overloaded Moves . | . . . Propulsion Burnouts . | . . . Robots Hopped . | . . . Cave-ins Triggered . | . . . Exploration Rate (%) 52 | 5 98 54 Regions Visited 2 Branch Regions 1 Pre-discovered Areas . | . . . Known Exits Taken . | . . . Unknown Exits Taken 2 | 1 1 . Scrap Searched 2 | . . 2 Spaces Dug . | . . . Terrain Destroyed . | . . . Melee . | . . . Projectile . | . . . AOE . | . . . Terrain Rammed . | . . . Walls Destroyed . | . . . Machines Disabled . | . . . Actions | -11 -10 -10 --------- Run | Yrd Mat Min Total 1471 | 72 1092 307 Wait . | . . . Move 1353 | 64 991 298 Hop . | . . . Pick Up 12 | 2 8 2 Fast Attach 14 | 6 8 . Attach 3 | . 2 1 Detach . | . . . Swap 5 | . 4 1 Drop 10 | . 10 . Fire 73 | . 68 5 Melee . | . . . Ram . | . . . Kick 1 | . 1 . Crush . | . . . Escape Stasis . | . . . Rewire . | . . . Trap . | . . . Miscellaneous . | . . . Route ------- -11/Scrapyard -10/Materials (discovered 4 exits: [*Mat x3] / [*Min]) -10/Mines (discovered 1 exit: [*Mat]) History --------- Turn | Location | Event 10 | -11/Scrapyard | Discovered new exit (range 15) 78 | -11/Scrapyard | Entered Materials 309 | -10/Materials | Build established: Mutant 312 | -10/Materials | Discovered new exit (range 9) 488 | -10/Materials | Discovered new exit (range 13) 772 | -10/Materials | Discovered new exit (range 7) 1195 | -10/Materials | Discovered new exit (range 15) 1636 | -10/Materials | Entered Mines 1699 | -10/Mines | Received a Rocket Launcher from a helpful Derelict 1844 | -10/Mines | Core integrity fell below 50% 1883 | -10/Mines | Learned Materials security intel 1893 | -10/Mines | Discovered new exit (range 10) 2052 | -10/Mines | Assembled infested the area 2127 | -10/Mines | Core integrity fell below 20% 2131 | -10/Mines | Destroyed by D-53 Grenadier with Mini Grenade Launcher Last Messages --------------- D-53 Grenadier unfolds itself. as-65585 destroyed. as-80456 destroyed. as-70471 destroyed. U-05 Engineer lays Concrete. as-58751 sneak attacks. U-05 Engineer destroyed. D-53 Grenadier destroyed. as-74524 destroyed. as-58751 destroyed. as-99748 destroyed. as-62917 destroyed. as-77754 destroyed. The unstable cave ceiling collapses. Lgt. Ion Engine destroyed. T-07 Excavator is excavating. The unstable cave ceiling collapses. T-07 Excavator is excavating. Imp. Treads destroyed. T-07 Excavator is excavating. Map ----- +----------------------------------------------------+ | # ### ##?????????????????????????????????????????? | | # #?# #??????????????????????????????????????????? | | #?# #??????????????????????????????????????????? | | ###?# #??????????????????????????????????????????? | | ????# #?????????????####?????????????????????????? | | ????# #????????????## ##????????????????????????? | | ??### #########????# ##???????????????????????? | | ??# #????# ##??????????????????????? | | ??# ######### #????# #??????????????????????? | | ??# #??????## ####?## #??????????????????????? | | ??# #?????## #### #??????????????????????? | | ### ####### ## ##??????????????????????? | | ! ! ###???????????????????????? | | ######### ## ##?????????????????????????? | | ????????# #### ####??????????????????????????? | | ????????# #??## ##?????????????????????????????? | | ##??????# #???#####??????????????????????????????? | | ######?# #??????????????????????????????????????? | | #?# ##???????????####??????????????????????? | | #?# ###?????????# #??????????????????????? | | #### !## ##????????# t#??????????????????????? | | ?### # ##???????# ###????????????????????? | | ## #?????### ##???????????????????? | | # #?????# ####????????????????? | | ####?????# #????????????????? | | ##????????# @ #????????????????????? | | # " #????????# ##???????????????????? | | # "%" #????????# #???????????????????? | | ## """ ##???????# ##???????????????????? | | ## """ ##????????## #????????????????????? | | # """ ##????????# #????????????????????? | | # ##???????## #????????????????????? | | # ##??????# #???????????????????? | | ######## ###???????????????????? | | ### =% ## d #????????????????????? | | #?## # ####????????????????????? | | ##??### !% ####???????????????????????? | | # ##????## = ##???????????????????????????? | | ## ##????# ##????????????????????????????? | | ?# #????## #????????????????????????????? | | ?# #?????## #????????????????????????????? | | ?# #####? ##????????????????????????????? | | ?# ## % ?????????????????????????????? | | ?## # % #####????????????????????????? | | ??## ### % ?????????????????? | | ???## ##?# # ########????????????????????????? | | ????## ###### #???????????????????????????????? | | ?????# #???????????????????????????????? | | ?????## #???????????????????????????????? | | ??????## ######???????????????????????????????? | +----------------------------------------------------+ Best States ------------- Heat Dissipation 25 Energy Generation 10 Energy Capacity 125 Matter Stores 300 Matter Capacity 300 Sight Range 16 Terrain Scan Density 10 Evasion (%) 55 Targeting Accuracy 5 Recoil Reduction 2 Item Schematics ----------------- None Robot Schematics ------------------ None Fabricated ------------ Nothing Alien Tech Used ----------------- None Achievements -------------- None Challenges ------------ None Game ------ Seed MappingRelayExtractor Manual? 0 Play Time 00:13:24 Cumulative 14.8 hours Start 2024.04.14 @ 17:49:51 End 2024.04.14 @ 18:01:39 Sessions 1 Manual Loads 0 Difficulty Rogue Special Mode None Game No. 31 Rogue 31 Adventurer 0 Explorer 0 Win Type - Total 0 Types 0/0/0/0/0/0/0/0/0 Lore% 20 Gallery% 20 Achievement% 19 Wizard Run 0 Options --------- Layout 0 ASCII 0 Keyboard 0 Movement Arrows Keybinds 0 Fullscreen 1 Font 18/SmallcapsGlow Map View 76x50 Zoom Use 0% Tactical HUD 0 Map Filters NONE Filters NONE Steam 1 RUN: 48d7c400-c773-4571-a332-88797506e82b